bitfinex-derivatives/quotes_SOLF0:USTF0_20240920
["timestamp","ask_amount","ask_price","bid_price","bid_amount"]
[1726830312926,2.572,151.35,151.33,3.3034]
[1726830313416,2.572,151.35,151.32,3.3037]
[1726830313626,12.712,151.35,151.31,3.31966651]
[1726830314024,12.712,151.35,151.32,3.3037]
[1726830314522,12.712,151.35,151.31,3.3039]
[1726830314724,12.712,151.35,151.28,132.18]
[1726830314725,12.712,151.35,151.29,10.14]
[1726830314923,14.025,151.35,151.3,3.36593129]
[1726830315127,10.14,151.33,151.29,3.3043]
[1726830315329,10.14,151.32,151.28,132.18]
[1726830315830,10.14,151.29,151.28,132.18]
[1726830317823,10.14,151.29,151.26,3.305]
[1726830319331,10.14,151.29,151.25,3.3051]
[1726830319826,10.14,151.31,151.28,3.3045]
[1726830320027,10.14,151.31,151.26,10.14]
[1726830320227,10.14,151.3,151.26,10.14]
[1726830320433,10.14,151.3,151.27,3.3047]
[1726830321630,10.14,151.3,151.26,13.4449]
[1726830321825,10.14,151.29,151.26,3.3049]
[1726830325934,10.14,151.28,151.2,213.29200632]
[1726830326125,10.14,151.28,151.23,10.14]
[1726830326730,13.4447,151.28,151.24,3.3054]
[1726830327631,10.14,151.26,151.23,13.4456]
[1726830328035,10.14,151.26,151.21,10.14]
[1726830328334,10.14,151.26,151.22,3.3058]
[1726830328726,13.445,151.26,151.22,3.3058]
[1726830330032,10.14,151.25,151.22,3.3058]
[1726830330737,10.14,151.25,151.23,3.3057]
[1726830330930,10.14,151.25,151.2,135.46474553]
[1726830331132,10.14,151.25,151.2,145.60474553]
[1726830331332,10.14,151.25,151.21,3.306]
[1726830332235,10.14,151.25,151.22,3.3058]
[1726830332936,10.14,151.24,151.2,3.28474553]
[1726830333437,10.14,151.24,151.19,10.14]
[1726830333735,10.14,151.24,151.2,10.14]
[1726830334234,10.14,151.24,151.21,3.306]
[1726830346744,10.14,151.24,151.2,3.3063]
[1726830346946,10.14,151.22,151.2,3.3063]
[1726830347348,10.14,151.24,151.19,13.50011369]
[1726830347647,10.14,151.26,151.21,10.14]
[1726830348141,10.14,151.26,151.21,13.49350059]
[1726830348342,10.14,151.26,151.22,10.14]
[1726830348942,1.3736,151.29,151.22,10.14]
[1726830349136,2.6659,151.3,151.24,10.14]
[1726830349348,2.6659,151.3,151.25,10.14]
[1726830349349,12.8059,151.3,151.25,10.14]
[1726830349646,12.8059,151.3,151.25,13.445225]
[1726830350347,12.8059,151.3,151.26,3.3049]
[1726830350542,12.8059,151.3,151.25,10.14]
[1726830350743,10.14,151.28,151.25,3.3051]
[1726830352744,10.14,151.26,151.21,132.24]
[1726830352944,10.14,151.25,151.21,135.5276068]
[1726830353648,10.14,151.24,151.21,132.24]
[1726830354146,10.14,151.24,151.21,135.5459]
[1726830354942,10.14,151.22,151.21,132.24]
[1726830355749,10.14,151.22,151.19,3.34335606]
[1726830355949,10.14,151.22,151.19,6.64975606]
[1726830356149,10.14,151.22,151.19,3.34335606]
[1726830356849,10.14,151.2,151.15,132.24]
[1726830357152,10.14,151.2,151.15,142.38]
[1726830357450,10.14,151.19,151.15,132.24]
[1726830357647,10.14,151.18,151.15,132.24]
[1726830357851,10.14,151.18,151.15,135.5473]
[1726830358247,10.14,151.18,151.15,132.24]
[1726830358449,10.14,151.18,151.16,3.3072]
[1726830359042,10.14,151.18,151.15,135.5474]
[1726830359749,10.14,151.17,151.15,132.24]
[1726830360545,10.14,151.17,151.13,3.3078]
[1726830360942,10.14,151.15,151.1,3.37101021]
[1726830361142,10.14,151.15,151.08,132.26]
[1726830361345,10.14,151.14,151.09,10.14]
[1726830361544,10.14,151.14,151.1,3.3083]
[1726830361753,10.14,151.14,151.1,13.4483]
[1726830361954,10.14,151.14,151.1,10.14]
[1726830362254,3.3071,151.17,151.11,3.3082]
[1726830362455,3.3071,151.17,151.11,10.14]
[1726830362650,10.14,151.17,151.14,3.3076]
[1726830363049,10.14,151.19,151.15,10.14]
[1726830363449,10.14,151.19,151.15,13.4472]
[1726830363945,10.14,151.19,151.16,3.3072]
[1726830364354,10.14,151.2,151.15,10.14]
[1726830364552,10.14,151.2,151.16,10.14]
[1726830364752,10.14,151.22,151.17,10.14]
[1726830365052,10.14,151.24,151.19,10.14]
[1726830365254,10.14,151.24,151.1,6.617]
[1726830365255,10.14,151.24,151.2,13.4462]
[1726830366052,3.3056,151.24,151.2,3.3062]
[1726830367552,15.87,151.24,151.15,15.87]
[1726830367753,15.87,151.24,151.16,3.23721457]
[1726830368159,3.3058,151.23,151.16,3.23721457]
[1726830368655,2.5625,151.22,151.16,3.23721457]
[1726830369748,2.5625,151.22,151.18,3.3066]
[1726830377563,2.5625,151.22,151.16,3.23721457]
[1726830377762,2.5625,151.22,151.15,15.87]
[1726830378160,2.5625,151.22,151.19,3.3064]
[1726830378962,5.8684,151.22,151.18,3.3067]
[1726830383260,2.5625,151.22,151.18,3.3067]
[1726830383456,2.5625,151.22,151.15,3.22473703]
[1726830383660,2.5625,151.22,151.17,15.87]
[1726830384265,1.264,151.22,151.17,15.87]
[1726830384465,1.264,151.22,151.2,3.3062]
[1726830385365,1.264,151.22,151.19,3.3065]
[1726830387065,1.264,151.22,151.2,3.3063]
[1726830387772,1.264,151.22,151.19,3.3064]
[1726830389169,1.264,151.22,151.2,3.3063]
[1726830390677,1.264,151.22,151.19,13.4664]
[1726830390870,1.264,151.22,151.19,3.3064]
[1726830392867,1.264,151.22,151.2,13.4663]
[1726830393773,3.3054,151.25,151.21,3.3061]
[1726830393973,13.4654,151.25,151.21,3.3061]
[1726830394369,3.3055,151.24,151.2,13.4663]
[1726830397274,1.2826,151.27,151.23,10.16]
[1726830397669,1.2826,151.27,151.25,10.16]
[1726830397868,2.5852,151.3,151.14,138.895]
[1726830397869,5.8895,151.3,151.26,10.16]
[1726830398180,2.5852,151.3,151.26,10.16]
[1726830398478,2.5852,151.3,151.27,3.3047]
[1726830398773,2.5852,151.3,151.26,10.16]
[1726830399374,5.8895,151.3,151.26,13.4649]
[1726830399572,16.0495,151.3,151.26,13.4649]
[1726830400078,5.8895,151.3,151.26,3.3049]
[1726830401169,3.3044,151.29,151.25,3.3052]
[1726830401675,1.3086,151.29,151.25,3.3052]
[1726830401872,3.3047,151.28,151.24,3.3054]
[1726830402072,17.1686,151.29,151.19,3.2843841]
[1726830402377,17.1686,151.29,151.2,15.86]
[1726830402877,17.1686,151.29,151.19,3.38490249]
[1726830402878,3.3047,151.28,151.22,15.86]
[1726830403077,1.3086,151.29,151.22,15.86]
[1726830404377,3.3048,151.27,151.23,3.3056]
[1726830406079,3.3051,151.26,151.22,3.3059]
[1726830406279,17.1686,151.29,151.22,3.3059]
[1726830406679,3.3049,151.27,151.22,3.3059]
[1726830408184,3.3047,151.28,151.22,3.3059]
[1726830409079,3.3047,151.28,151.23,3.3055]
[1726830409486,3.3047,151.28,151.2,15.86]
[1726830410380,3.3047,151.28,151.23,3.3055]
[1726830411382,3.3048,151.27,151.23,3.3055]
[1726830411782,17.1686,151.29,151.22,3.3059]
[1726830412173,15.86,151.25,151.19,3.3065]
[1726830412377,1.322,151.24,151.17,132.26]
[1726830412579,4.6275,151.24,151.17,132.26]
[1726830412979,4.6275,151.24,151.19,3.3065]
[1726830413180,3.3057,151.23,151.19,3.3065]
[1726830414977,7.3025,151.24,151.2,3.3063]
[1726830415383,7.3025,151.24,151.17,132.26]
[1726830416182,7.3025,151.24,151.2,3.3062]
[1726830418483,7.3025,151.24,151.21,3.3061]
[1726830418683,7.3025,151.24,151.16,3.30765147]
[1726830418887,3.3057,151.23,151.15,15.86]
[1726830419390,3.3057,151.23,151.15,19.17767451]
[1726830419589,3.3059,151.22,151.15,19.17767451]
[1726830420090,3.3061,151.21,151.17,3.3068]
[1726830420387,15.86,151.23,151.17,3.3068]
[1726830420790,3.3061,151.22,151.17,3.3068]
[1726830421989,13.4661,151.22,151.17,13.4668]
[1726830423887,3.3061,151.21,151.17,13.4668]
[1726830424087,10.16,151.21,151.16,3.3071]
[1726830424288,3.997,151.24,151.16,3.3071]
[1726830424488,10.16,151.19,151.15,10.16]
[1726830424893,10.16,151.19,151.15,13.4673]
[1726830425293,10.16,151.18,151.14,13.4675]
[1726830425496,10.16,151.17,151.14,3.3075]
[1726830425691,10.16,151.17,151.13,10.16]
[1726830425998,13.4671,151.17,151.13,10.16]
[1726830426187,10.16,151.17,151.08,136.7945]
[1726830426495,10.16,151.16,151.12,10.16]
[1726830426693,13.4674,151.16,151.12,10.16]
[1726830427092,10.16,151.16,151.11,3.3082]
[1726830428500,13.4673,151.16,151.11,3.3082]
[1726830430103,3.3074,151.15,151.11,3.3082]
[1726830432194,3.3077,151.14,151.1,13.4684]
[1726830432602,10.16,151.16,151.1,13.4684]
[1726830432804,3.3076,151.15,151.1,13.4684]
[1726830433105,10.16,151.14,151.1,13.4684]
[1726830435202,10.16,151.14,151.11,3.3083]
[1726830435392,3.3076,151.15,151.11,13.4683]
[1726830435593,10.16,151.17,151.12,10.16]
[1726830435994,13.4671,151.17,151.12,10.16]
[1726830436206,10.16,151.17,151.13,10.16]
[1726830437100,3.3073,151.16,151.13,10.16]
[1726830437804,3.3073,151.16,151.13,13.4678]
[1726830438607,13.4673,151.16,151.13,3.3078]
[1726830441601,13.4675,151.15,151.12,3.308]
[1726830442000,10.16,151.15,151.12,3.308]
[1726830443106,13.4673,151.16,151.12,3.308]
[1726830443310,3.6261,151.18,151.09,3.24223034]
[1726830443311,10.16,151.2,151.15,10.16]
[1726830443507,10.16,151.21,151.16,10.16]
[1726830443710,10.16,151.21,151.18,3.3066]
[1726830444312,13.4661,151.21,151.18,3.3066]
[1726830444614,3.3061,151.21,151.18,3.3066]
[1726830444816,13.4661,151.21,151.18,3.3066]
[1726830445416,10.16,151.21,151.19,3.3065]
[1726830445710,10.16,151.21,151.16,10.16]
[1726830446017,13.4662,151.21,151.16,10.16]
[1726830446715,13.4662,151.21,151.18,3.3067]
[1726830447718,10.16,151.21,151.19,3.3065]
[1726830448318,13.4661,151.21,151.19,3.3065]
[1726830454318,13.4661,151.21,151.18,13.4667]
[1726830454913,3.3064,151.2,151.18,13.4667]
[1726830455125,10.16,151.19,151.11,138.9364]
[1726830455314,10.16,151.19,151.14,10.16]
[1726830455519,13.4667,151.19,151.11,138.9364]
[1726830455723,13.4667,151.19,151.15,3.3073]
[1726830456420,10.16,151.18,151.11,132.32]
[1726830456823,10.16,151.18,151.12,10.16]
[1726830457123,3.3071,151.17,151.13,13.4678]
[1726830457325,1.7454,151.21,151.14,10.16]
[1726830457521,10.16,151.19,151.14,10.16]
[1726830457823,13.4667,151.19,151.14,13.4675]
[1726830458021,10.16,151.19,151.14,13.4675]
[1726830458225,1.7454,151.21,151.16,10.16]
[1726830458418,10.16,151.2,151.16,10.16]
[1726830459130,13.4664,151.2,151.16,13.4671]
[1726830460220,3.3067,151.19,151.15,3.3074]
[1726830460427,13.4667,151.19,151.15,13.4674]
[1726830462823,3.3067,151.19,151.15,13.4674]
[1726830464228,3.3068,151.18,151.15,10.16]
[1726830464832,13.4668,151.18,151.14,13.4676]
[1726830467630,10.16,151.18,151.15,3.3074]
[1726830467825,3.3066,151.19,151.15,13.4674]
[1726830470731,13.7129,151.22,151.18,10.16]
[1726830470926,9.91186135,151.28,151.19,10.16]
[1726830470927,10.16,151.23,151.19,10.16]
[1726830471840,10.16,151.24,151.19,10.16]
[1726830472129,10.16,151.26,151.22,10.16]
[1726830472336,3.6404,151.27,151.23,10.16]
[1726830472531,3.6404,151.27,151.24,10.16]
[1726830472935,3.6404,151.27,151.24,13.4653]
[1726830474837,6.9453,151.27,151.23,13.4656]
[1726830476233,13.465,151.26,151.22,13.4658]
[1726830476629,10.16,151.26,151.22,13.4658]
[1726830476833,3.3053,151.25,151.22,10.16]
[1726830477233,10.16,151.25,151.19,3.3065]
[1726830477429,10.16,151.23,151.19,3.3065]
[1726830478937,10.16,151.24,151.19,10.16]
[1726830479337,3.3058,151.23,151.19,13.4664]
[1726830479537,10.16,151.23,151.18,10.16]
[1726830479728,10.16,151.22,151.17,142.46]
[1726830480239,13.466,151.22,151.17,149.1335207]
[1726830480535,13.466,151.22,151.17,145.8267207]
[1726830480933,13.466,151.22,151.17,149.1336207]
[1726830481133,3.306,151.22,151.18,10.16]
[1726830481931,1.8469,151.26,151.19,10.16]
[1726830482135,10.16,151.25,151.21,10.16]
[1726830482737,1.8469,151.26,151.2,10.16]
[1726830482738,10.16,151.24,151.2,10.16]
[1726830483135,13.4657,151.24,151.2,13.4662]
[1726830487141,13.4657,151.24,151.17,3.3667207]
[1726830487142,10.16,151.22,151.17,3.3667207]
[1726830487444,10.16,151.22,151.17,10.16]
[1726830487642,10.16,151.22,151.18,10.16]
[1726830487841,13.466,151.22,151.18,13.4667]
[1726830488344,10.16,151.22,151.18,10.16]
[1726830488645,3.3062,151.21,151.18,10.16]
[1726830489946,3.3063,151.2,151.16,3.3071]
[1726830490142,3.3063,151.2,151.17,10.16]
[1726830490440,3.3066,151.19,151.15,3.3073]
[1726830490644,3.3066,151.19,151.11,136.7865]
[1726830490645,13.4666,151.19,151.11,136.7865]
[1726830490840,13.4666,151.19,151.14,10.16]
[1726830491240,10.16,151.17,151.11,136.7865]
[1726830491542,10.16,151.16,151.12,10.16]
[1726830492142,10.16,151.16,151.12,13.468]
[1726830495342,13.4672,151.16,151.12,13.468]
[1726830495537,13.4672,151.16,151.12,3.308]
[1726830495739,10.16,151.16,151.12,13.468]
[1726830496143,13.4674,151.16,151.12,10.16]
[1726830496338,3.3074,151.16,151.12,10.16]
[1726830496746,10.16,151.17,151.12,10.16]
[1726830498649,3.3073,151.16,151.12,10.16]
[1726830498843,3.3073,151.16,151.12,13.468]
[1726830499049,10.16,151.18,151.13,10.16]
[1726830499344,10.16,151.18,151.06,136.806]
[1726830499345,10.16,151.18,151.14,10.16]
[1726830499546,1.8581,151.2,151.14,13.4675]
[1726830499750,10.16,151.19,151.14,10.16]
[1726830500150,10.16,151.19,151.14,13.47215591]
[1726830500756,13.4666,151.19,151.16,3.3072]
[1726830501448,6.9956,151.21,151.17,3.3068]
[1726830501657,13.8493,151.21,151.17,13.4668]
[1726830501850,13.8493,151.21,151.17,10.16]
[1726830502058,13.8493,151.21,151.19,3.3065]
[1726830502359,13.466,151.22,151.19,3.3065]
[1726830502554,10.16,151.24,151.19,10.16]
[1726830502852,3.3057,151.24,151.2,10.16]
[1726830503150,10.16,151.25,151.2,10.16]
[1726830503346,13.4654,151.25,151.21,3.306]
[1726830504557,3.3055,151.24,151.21,3.306]
[1726830505660,3.3055,151.24,151.2,13.4662]
[1726830505856,3.3058,151.23,151.18,3.29475036]
[1726830506049,3.3058,151.23,151.18,10.16]
[1726830506255,3.6127,151.26,151.15,3.30235566]
[1726830506256,10.16,151.21,151.15,3.30235566]
[1726830506455,10.16,151.21,151.14,132.32]
[1726830506456,13.4662,151.21,151.16,10.16]
[1726830506667,13.4662,151.21,151.16,13.4671]
[1726830506863,13.4662,151.21,151.16,10.16]
[1726830507065,13.466,151.22,151.17,10.16]
[1726830507271,10.16,151.22,151.18,10.16]
[1726830507472,10.16,151.23,151.18,10.16]
[1726830508274,10.16,151.23,151.2,10.16]
[1726830508862,3.6127,151.26,151.21,10.16]
[1726830509063,13.7727,151.26,151.21,10.16]
[1726830509277,10.16,151.27,151.22,10.16]
[1726830509768,10.16,151.26,151.21,10.16]
[1726830509968,3.3052,151.26,151.21,3.3059]
[1726830510966,3.3052,151.26,151.22,3.3059]
[1726830512175,3.3053,151.25,151.21,3.306]
[1726830516974,15.87,151.26,151.2,3.3062]
[1726830517171,15.87,151.24,151.15,18.1835]
[1726830517374,15.87,151.24,151.17,3.3069]
[1726830517375,3.3062,151.21,151.17,3.3069]
[1726830517673,15.87,151.24,151.15,15.87]
[1726830518071,3.3063,151.21,151.16,3.307]
[1726830518271,3.3063,151.21,151.15,15.87]
[1726830519774,3.3063,151.21,151.17,3.3069]
[1726830522479,3.306,151.22,151.18,3.3067]
[1726830522777,15.87,151.26,151.17,15.87]
[1726830523278,3.3058,151.23,151.19,3.3064]
[1726830524076,15.87,151.26,151.18,15.87]
[1726830524273,4.7552,151.27,151.18,15.87]
[1726830524973,4.7552,151.27,151.2,15.87]
[1726830525173,3.1507,151.27,151.2,15.87]
[1726830525970,6.4557,151.27,151.22,3.3058]
[1726830526169,3.1507,151.27,151.22,3.3058]
[1726830526378,3.1507,151.27,151.2,15.87]
[1726830526978,3.1507,151.27,151.18,15.87]
[1726830527481,4.6262,151.27,151.18,15.87]
[1726830527681,3.3056,151.24,151.2,3.3062]
[1726830528877,3.3054,151.25,151.2,3.3062]
[1726830529479,3.3055,151.24,151.2,3.3062]
[1726830531180,3.3055,151.24,151.2,19.1762]
[1726830531389,4.6262,151.27,151.18,15.87]
[1726830531878,3.3056,151.24,151.2,10.16]
[1726830532477,3.306,151.22,151.18,10.16]
[1726830532777,3.306,151.22,151.15,132.28]
[1726830532778,10.16,151.24,151.19,10.16]
[1726830533171,3.3059,151.22,151.19,10.16]
[1726830545686,3.3061,151.21,151.18,10.16]
[1726830545884,10.16,151.2,151.14,3.24734934]
[1726830546085,10.16,151.2,151.15,10.16]
[1726830546387,3.3069,151.18,151.15,3.3457887]
[1726830546588,3.3069,151.18,151.14,13.4676]
[1726830547187,3.3069,151.18,151.15,3.27567134]
[1726830548288,3.307,151.17,151.13,135.5878]
[1726830548591,10.16,151.18,151.13,142.44]
[1726830548782,10.16,151.17,151.13,132.28]
[1726830548987,3.3074,151.16,151.13,132.28]
[1726830549688,13.4671,151.17,151.13,132.28]
[1726830549989,10.16,151.17,151.13,132.28]
[1726830550188,3.3074,151.16,151.13,142.44]
[1726830550392,10.16,151.17,151.13,10.16]
[1726830550888,10.16,151.17,151.07,132.3]
[1726830550889,10.16,151.15,151.07,132.3]
[1726830551089,10.16,151.16,151.11,10.16]
[1726830551393,3.3073,151.16,151.13,10.16]
[1726830552383,3.3073,151.16,151.12,3.3081]
[1726830552587,3.3073,151.16,151.13,10.16]
[1726830553292,3.3075,151.15,151.13,10.16]
[1726830553488,10.16,151.17,151.07,132.3]
[1726830553489,10.16,151.16,151.11,13.4683]
[1726830553693,10.16,151.15,151.1,10.16]
[1726830554092,10.16,151.14,151.07,132.3]
[1726830554395,10.16,151.13,151.08,10.16]
[1726830554596,10.16,151.13,151.08,13.4688]
[1726830554597,3.3082,151.12,151.08,13.4688]
[1726830555187,3.3084,151.11,151.07,135.6091]
[1726830555402,10.16,151.13,151.07,132.3]
[1726830555594,3.3085,151.11,151.07,142.46]
[1726830556090,10.16,151.11,151.07,132.3]
[1726830556284,3.3087,151.1,151.07,132.3]
[1726830557188,13.4684,151.11,151.07,132.3]
[1726830557391,10.16,151.12,151.07,142.46]
[1726830557689,13.468,151.13,151.08,13.4688]
[1726830558798,3.3082,151.12,151.08,13.4688]
[1726830559095,10.16,151.12,151.07,145.7691]
[1726830559295,10.16,151.11,151.07,132.3]
[1726830559896,3.3086,151.1,151.06,16.83957998]
[1726830560195,3.3086,151.1,151.06,3.3092]
[1726830560396,3.3086,151.1,151.06,13.4692]
[1726830562396,3.3088,151.09,151.05,6.54089596]
[1726830562696,10.16,151.1,151.05,13.39139596]
[1726830563595,10.16,151.11,151.07,10.16]
[1726830564699,10.16,151.12,151.07,10.16]
[1726830565097,3.3084,151.11,151.07,10.16]
[1726830565293,3.3084,151.11,151.07,13.4691]
[1726830565899,10.16,151.12,151.05,3.23139596]
[1726830565900,10.16,151.13,151.08,10.16]
[1726830566198,10.16,151.14,151.1,10.16]
[1726830566400,1.3512,151.15,151.02,132.34]
[1726830566401,1.3512,151.15,151.12,13.4679]
[1726830566601,2.7335,151.16,151.12,13.4679]
[1726830566899,2.7335,151.16,151.12,10.16]
[1726830567299,3.3075,151.15,151.12,13.468]
[1726830567703,3.3078,151.14,151.12,10.16]
[1726830567898,2.7335,151.16,151.11,10.16]
[1726830568099,12.8935,151.16,151.11,10.16]
[1726830568599,3.3074,151.15,151.11,10.16]
[1726830569102,3.3077,151.14,151.12,3.308]
[1726830569306,3.3077,151.14,151.11,10.16]
[1726830569507,3.3077,151.14,151.11,13.4682]
[1726830569804,3.3079,151.13,151.11,10.16]
[1726830570004,3.3079,151.13,151.1,10.16]
[1726830570408,3.3079,151.13,151.1,13.4684]
[1726830571510,3.3077,151.14,151.1,13.4684]
[1726830572404,3.3079,151.13,151.1,13.4684]
[1726830573209,3.3077,151.14,151.1,13.4684]
[1726830573416,10.16,151.14,151.09,10.16]
[1726830573801,3.3082,151.12,151.09,10.16]
[1726830574111,10.16,151.14,151.09,10.16]
[1726830574807,10.16,151.12,151.07,3.3091]
[1726830575001,10.16,151.12,151.08,10.16]
[1726830576214,3.3084,151.11,151.08,10.16]
[1726830576715,3.3084,151.11,151.08,13.469]
[1726830579215,10.16,151.12,151.06,3.3093]
[1726830579514,10.16,151.12,151.07,10.16]
[1726830580315,3.3086,151.1,151.07,13.4692]
[1726830581210,3.3086,151.1,151.08,10.16]
[1726830583815,11.5043,151.15,151.09,10.16]
[1726830584015,1.3443,151.15,151.12,10.16]
[1726830584213,12.8935,151.16,151.13,10.16]
[1726830584409,3.3075,151.15,151.13,10.16]
[1726830585428,12.8935,151.16,151.03,6.6199]
[1726830585629,10.16,151.15,151.11,10.16]
[1726830586427,3.3077,151.14,151.11,10.16]
[1726830586926,2.7335,151.16,151.12,10.16]
[1726830587226,6.0408,151.16,151.13,13.4678]
[1726830587425,1.3225,151.21,151.13,10.16]
[1726830587625,1.3225,151.21,151.15,10.16]
[1726830587626,3.307,151.17,151.15,10.16]
[1726830589231,3.3072,151.16,151.15,10.16]
[1726830589424,3.3072,151.16,151.13,3.3078]
[1726830589622,3.3072,151.16,151.14,10.16]
[1726830591833,2.7105,151.2,151.08,132.36]
[1726830592032,10.16,151.15,151.1,10.16]
[1726830592431,3.3078,151.14,151.11,13.4682]
[1726830595436,10.16,151.17,151.12,10.16]
[1726830596229,10.16,151.17,151.12,13.4679]
[1726830596230,3.3073,151.16,151.12,13.4679]
[1726830596440,12.8705,151.2,151.15,10.16]
[1726830596636,3.3072,151.16,151.15,10.16]
[1726830597435,3.3072,151.16,151.14,10.16]
[1726830598537,3.3068,151.18,151.14,10.16]
[1726830598838,10.16,151.19,151.14,10.16]
[1726830599535,3.3071,151.17,151.14,10.16]
[1726830600335,2.7105,151.2,151.16,10.16]
[1726830600538,10.16,151.23,151.18,10.16]
[1726830601040,3.3062,151.21,151.18,10.16]
[1726830601632,3.3063,151.2,151.18,10.16]
[1726830602040,3.3063,151.2,151.17,10.16]
[1726830602940,3.3062,151.21,151.19,10.16]
[1726830604543,10.16,151.25,151.2,10.16]
[1726830604843,10.16,151.26,151.21,10.16]
[1726830605042,3.3058,151.23,151.21,10.16]
[1726830605440,10.16,151.26,151.21,10.16]
[1726830605634,10.16,151.26,151.21,13.466]
[1726830606132,3.3054,151.25,151.23,10.16]
[1726830606543,12.8233,151.27,151.24,10.16]
[1726830606733,3.3052,151.26,151.24,10.16]
[1726830606936,12.8233,151.27,151.24,10.16]
[1726830607840,3.3052,151.25,151.24,10.16]
[1726830609544,3.3055,151.24,151.22,13.4658]
[1726830610044,2.6633,151.27,151.23,10.16]
[1726830610842,3.3051,151.26,151.23,13.4656]
[1726830611347,2.6633,151.27,151.23,10.16]
[1726830611936,3.3052,151.25,151.23,10.16]
[1726830612141,2.6633,151.27,151.23,10.16]
[1726830612541,3.3052,151.26,151.23,13.4657]
[1726830612742,3.3052,151.26,151.23,10.16]
[1726830613047,3.3053,151.25,151.23,10.16]
[1726830613746,3.3055,151.24,151.23,10.16]
[1726830613943,10.16,151.25,151.17,132.3]
[1726830614135,3.3057,151.23,151.2,10.16]
[1726830615045,3.3056,151.24,151.21,10.16]
[1726830615246,3.3056,151.24,151.22,10.16]
[1726830615443,2.6633,151.27,151.23,10.16]
[1726830615646,3.3051,151.26,151.25,10.16]
[1726830616144,10.16,151.31,151.25,10.16]
[1726830616343,12.8332,151.31,151.26,10.16]
[1726830616849,3.3047,151.28,151.26,10.16]
[1726830617943,3.3047,151.28,151.25,3.3052]
[1726830618453,3.3045,151.29,151.26,3.305]
[1726830619347,3.3046,151.28,151.26,3.305]
[1726830619651,2.6732,151.31,151.24,19.15828125]
[1726830620048,2.6732,151.31,151.24,6.60358125]
[1726830620242,18.5332,151.31,151.24,3.3053]
[1726830621150,18.5332,151.31,151.21,3.34313496]
[1726830621352,3.3053,151.25,151.22,3.3058]
[1726830621745,15.86,151.29,151.2,148.14]
[1726830622352,15.86,151.29,151.2,151.51784565]
[1726830622550,3.3056,151.24,151.2,154.82404565]
[1726830622949,3.3056,151.24,151.2,19.1662]
[1726830623154,3.3057,151.23,151.2,19.1662]
[1726830623356,15.86,151.27,151.18,19.16247387]
[1726830623856,15.86,151.24,151.16,15.86]
[1726830624149,15.86,151.24,151.17,3.3500771]
[1726830624354,2.772,151.23,151.17,3.3500771]
[1726830624554,3.3064,151.2,151.17,3.3500771]